bitfinex/quotes_SOLUSD_20241121
["timestamp","ask_amount","ask_price","bid_price","bid_amount"]
[1732192548233,37.3323076,243.51,243.43,37.3323076]
[1732192548528,37.3323076,243.53,243.45,37.3323076]
[1732192548950,37.3323076,243.51,243.43,37.3323076]
[1732192549552,37.3323076,243.55,243.47,37.3323076]
[1732192549734,37.3323076,243.55,243.48,37.3323076]
[1732192549938,37.3323076,243.57,243.48,37.3323076]
[1732192550235,37.3323076,243.66,243.56,37.3323076]
[1732192550550,37.3323076,243.68,243.58,37.3323076]
[1732192550851,12.3456,243.76,243.53,32.6218]
[1732192550852,12.3456,243.87,243.68,23.776884]
[1732192551027,43.51095997,243.96,243.68,23.776884]
[1732192551028,37.3323076,243.85,243.78,37.3323076]
[1732192551228,37.3323076,243.91,243.82,37.3323076]
[1732192551453,37.3323076,243.91,243.85,10.2522]
[1732192551747,0.5,243.95,243.7,43.776884]
[1732192552053,0.93345929,243.94,243.7,43.776884]
[1732192552228,0.5,243.91,243.69,14.3624]
[1732192552430,0.93345929,243.9,243.69,14.3624]
[1732192552632,0.93345929,243.9,243.8,37.3323076]
[1732192552633,37.3323076,243.88,243.8,37.3323076]
[1732192552853,37.3323076,243.94,243.86,37.3323076]
[1732192553149,37.3323076,243.98,243.9,37.3323076]
[1732192553323,37.3323076,243.96,243.88,37.3323076]
[1732192553529,37.3323076,243.98,243.9,37.3323076]
[1732192553943,17.1031,244.05,243.9,37.3323076]
[1732192553944,37.3323076,244.0,243.9,37.3323076]
[1732192554325,37.3323076,244.04,243.94,37.3323076]
[1732192554639,37.3323076,244.04,243.89,14.3507]
[1732192554640,37.3323076,244.02,243.92,37.3323076]
[1732192554846,37.3323076,244.02,243.89,14.3507]
[1732192554847,37.3323076,243.98,243.9,37.3323076]
[1732192555352,37.3323076,243.96,243.89,10.2505]
[1732192555835,37.3323076,243.96,243.78,21.0101]
[1732192555836,37.3323076,243.9,243.82,10.253]
[1732192556153,37.3323076,243.98,243.88,37.3323076]
[1732192556357,20.0,243.97,243.9,37.3323076]
[1732192556533,37.3323076,243.92,243.84,37.3323076]
[1732192557142,37.3323076,243.94,243.86,37.3323076]
[1732192557431,37.3323076,243.98,243.9,37.3323076]
[1732192557631,37.3323076,243.96,243.86,37.3323076]
[1732192558554,37.3323076,243.96,243.88,37.3323076]
[1732192559143,10.2433,244.06,243.86,37.3323076]
[1732192559144,37.3323076,243.94,243.86,37.3323076]
[1732192559450,4.5976,244.04,243.78,37.3323076]
[1732192559451,37.3323076,243.88,243.78,37.3323076]
[1732192559657,37.3323076,243.86,243.78,37.3323076]
[1732192560280,37.3323076,243.86,243.77,10.2555]
[1732192560457,37.3323076,243.82,243.74,41.4349076]
[1732192560639,37.3323076,243.84,243.76,37.3323076]
[1732192560833,37.3323076,243.94,243.82,37.3323076]
[1732192561152,41.4310076,243.98,243.9,37.3323076]
[1732192561333,41.4310076,243.98,243.84,37.3323076]
[1732192561334,0.93391664,243.97,243.92,37.3323076]
[1732192561529,0.93391664,243.97,243.96,37.3323076]
[1732192562852,0.93391664,243.97,243.96,74.6646152]
[1732192563035,0.93391664,243.97,243.96,61.1091916]
[1732192563364,0.93391664,243.97,243.94,37.3323076]
[1732192563535,0.93391664,243.97,243.96,37.3323076]
[1732192563856,0.93391664,243.97,243.96,74.6646152]
[1732192564228,0.93391664,243.97,243.96,37.3323076]
[1732192564431,0.93391664,243.97,243.96,78.7636152]
[1732192564834,37.3323076,244.14,243.97,23.776884]
[1732192565037,37.3323076,244.16,244.07,37.3323076]
[1732192565759,4.0954,244.18,244.05,37.3323076]
[1732192565760,37.3323076,244.12,244.05,37.3323076]
[1732192565956,37.3323076,244.16,244.08,4.097]
[1732192566148,37.3323076,244.16,244.07,10.2428]
[1732192566453,37.3323076,244.09,243.97,37.3323076]
[1732192566657,37.3323076,244.09,243.87,24.6032]
[1732192566658,37.3323076,244.09,244.01,37.3323076]
[1732192566853,37.3323076,244.11,244.03,37.3323076]
[1732192567256,37.3323076,244.09,243.99,37.3323076]
[1732192567461,37.3323076,244.05,243.97,37.3323076]
[1732192567787,37.3323076,244.05,243.87,55.8572]
[1732192567788,37.3323076,244.01,243.93,37.3323076]
[1732192567968,37.3323076,243.99,243.89,37.3323076]
[1732192568463,37.3323076,243.97,243.89,37.3323076]
[1732192568861,37.3323076,243.95,243.88,10.2509]
[1732192569038,13.0191,244.06,243.82,51.6866076]
[1732192569039,37.3323076,243.91,243.82,51.6866076]
[1732192569741,0.5,243.99,243.9,37.3323076]
[1732192569742,23.776884,243.99,243.9,37.3323076]
[1732192569946,43.776884,244.01,243.94,37.3323076]
[1732192570140,37.3323076,244.06,243.98,37.3323076]
[1732192570558,37.3323076,244.02,243.94,37.3323076]
[1732192570740,37.3323076,244.04,243.96,37.3323076]
[1732192570940,37.3323076,244.11,244.02,37.3323076]
[1732192571556,4.0963,244.13,244.0,37.3323076]
[1732192571557,37.3323076,244.09,244.0,37.3323076]
[1732192571766,37.3323076,244.09,244.0,41.4305076]
[1732192571959,37.3323076,244.11,244.02,37.3323076]
[1732192572270,37.3323076,244.05,243.95,37.3323076]
[1732192572468,37.3323076,244.05,243.96,4.0989]
[1732192572768,37.3323076,244.03,243.94,14.3473]
[1732192572946,37.3323076,244.08,243.89,47.5827076]
[1732192572947,37.3323076,243.99,243.89,47.5827076]
[1732192573152,37.3323076,243.97,243.89,47.5827076]
[1732192573758,37.3323076,243.99,243.89,51.6827076]
[1732192573959,37.3323076,243.97,243.89,51.6827076]
[1732192574173,37.3323076,243.93,243.87,4.1004]
[1732192574353,37.3323076,243.95,243.88,37.3323076]
[1732192574546,37.3323076,243.99,243.9,37.3323076]
[1732192575053,37.3323076,244.02,243.93,37.3323076]
[1732192575254,37.3323076,244.02,243.87,34.8544]
[1732192575255,37.3323076,244.04,243.95,37.3323076]
[1732192575876,37.3323076,244.08,243.99,37.3323076]
[1732192576168,37.3323076,244.1,244.01,37.3323076]
[1732192576470,37.3323076,244.12,244.03,37.3323076]
[1732192576765,37.3323076,244.08,243.99,37.3323076]
[1732192577345,37.3323076,244.04,243.95,69.9402076]
[1732192577560,37.3323076,244.04,243.95,37.3323076]
[1732192578066,0.5,244.13,243.87,32.766]
[1732192578067,37.3323076,244.08,244.01,37.3323076]
[1732192578258,20.0,244.1,244.01,37.3323076]
[1732192578454,37.3323076,244.11,244.01,37.3323076]
[1732192578773,37.3323076,244.09,244.01,37.3323076]
[1732192578943,37.3323076,244.07,243.99,37.3323076]
[1732192579146,37.3323076,244.09,244.01,37.3323076]
[1732192579550,37.3323076,244.05,243.96,34.8416]
[1732192579955,37.3323076,244.05,243.98,14.3453]
[1732192580875,37.3323076,244.09,243.99,37.3323076]
[1732192581085,37.3323076,244.11,244.03,37.3323076]
[1732192582079,37.3323076,244.11,244.04,4.0976]
[1732192583177,37.3323076,244.11,244.04,14.3418]
[1732192583379,37.3323076,244.08,244.04,14.3418]
[1732192583556,37.3323076,244.1,244.04,14.3418]
[1732192584078,37.3323076,244.1,244.04,10.2442]
[1732192584760,37.3323076,244.14,244.05,37.3323076]
[1732192584960,37.3323076,244.12,244.04,10.2442]
[1732192585363,37.3323076,244.08,244.02,4.098]
[1732192585565,37.3323076,244.08,244.0,4.0983]
[1732192586072,37.3323076,244.08,244.0,14.3442]
[1732192586856,10.7379,244.19,244.01,37.3323076]
[1732192586857,37.3323076,244.1,244.01,37.3323076]
[1732192587154,37.3323076,244.12,244.03,37.3323076]
[1732192587355,37.3323076,244.08,244.01,37.3323076]
[1732192587861,37.3323076,244.1,244.01,37.3323076]
[1732192588059,37.3323076,244.08,244.02,14.343]
[1732192588252,37.3323076,244.06,244.02,10.245]
[1732192588452,10.7383,244.18,243.97,10.2468]
[1732192588453,37.3323076,244.04,243.97,10.2468]
[1732192588652,37.3323076,244.01,243.97,14.3456]
[1732192588855,37.3323076,244.08,244.0,37.3323076]
[1732192589755,37.3323076,244.12,244.04,37.3323076]
[1732192589963,37.3323076,244.16,244.08,37.3323076]
[1732192590308,10.234,244.29,244.12,37.3323076]
[1732192590309,37.3323076,244.22,244.12,37.3323076]
[1732192590453,37.3323076,244.2,244.1,37.3323076]
[1732192590654,23.17129733,244.18,244.09,23.17129733]
[1732192591477,23.17129733,244.2,244.11,23.17129733]
[1732192591857,23.17129733,244.2,244.05,44.264484]
[1732192592179,23.17129733,244.24,244.15,23.17129733]
[1732192592361,23.17129733,244.28,244.19,23.17129733]
[1732192592763,23.17129733,244.26,244.17,23.17129733]
[1732192593066,23.17129733,244.23,244.14,23.17129733]
[1732192593778,23.17129733,244.21,244.12,23.17129733]
[1732192594194,23.17129733,244.17,244.13,14.3365]
[1732192594363,23.17129733,244.21,244.13,14.3365]
[1732192595466,23.17129733,244.18,244.13,14.3365]
[1732192595674,23.17129733,244.2,244.13,14.3365]
[1732192597090,23.17129733,244.14,244.09,4.0968]
[1732192597272,23.17129733,244.14,244.09,14.3389]
[1732192597684,23.17129733,244.16,244.09,14.3389]
[1732192598067,23.17129733,244.21,244.13,23.17129733]
[1732192598984,23.17129733,244.21,244.14,14.336]
[1732192600464,10.2322,244.33,244.18,23.17129733]
[1732192600465,23.17129733,244.27,244.18,23.17129733]
[1732192600889,23.17129733,244.25,244.16,23.17129733]
[1732192601103,23.17129733,244.23,244.14,37.50729733]
[1732192601288,23.17129733,244.21,244.14,37.50729733]
[1732192601471,23.17129733,244.23,244.14,37.50729733]
[1732192602673,23.17129733,244.25,244.16,23.17129733]
[1732192603070,23.17129733,244.27,244.18,23.17129733]
[1732192603279,23.17129733,244.29,244.2,23.17129733]
[1732192603588,20.0,244.28,244.2,23.17129733]
[1732192604373,20.0,244.28,244.21,4.0948]
[1732192604694,23.17129733,244.27,244.21,4.0948]
[1732192604887,27.26479733,244.29,244.21,4.0948]
[1732192605195,23.17129733,244.27,244.19,4.095]
[1732192605372,23.17129733,244.25,244.19,4.095]
[1732192605572,23.17129733,244.25,244.17,4.0954]
[1732192605808,23.17129733,244.23,244.16,10.2389]
[1732192605980,23.17129733,244.23,244.16,14.3345]
[1732192606303,27.26579733,244.23,244.16,10.2389]
[1732192606993,23.17129733,244.23,244.16,10.2389]
[1732192607198,27.26549733,244.25,244.16,33.41019733]
[1732192607502,23.17129733,244.27,244.18,23.17129733]
[1732192607674,20.0,244.26,244.18,23.17129733]
[1732192607878,23.17129733,244.27,244.18,23.17129733]
[1732192608092,23.17129733,244.29,244.22,23.17129733]
[1732192608281,6.67865237,244.37,244.16,10.2389]
[1732192608282,23.17129733,244.26,244.19,4.0951]
[1732192608886,23.17129733,244.26,244.18,23.17129733]
[1732192609091,23.17129733,244.26,244.18,37.50479733]
[1732192609391,23.17129733,244.22,244.14,23.17129733]
[1732192609585,23.17129733,244.18,244.13,10.2403]
[1732192609974,23.17129733,244.14,244.08,10.2424]
[1732192610180,23.17129733,244.1,244.02,23.17129733]
[1732192610481,12.7186,244.19,244.06,23.17129733]
[1732192610482,23.17129733,244.14,244.06,23.17129733]
[1732192610684,46.94818133,244.16,244.06,23.17129733]
[1732192610992,23.17129733,244.14,244.06,23.17129733]
[1732192611698,20.0,244.05,243.93,37.51959733]
[1732192611902,23.17129733,244.0,243.93,33.42009733]
[1732192612198,23.17129733,244.0,243.93,37.51959733]
[1732192612699,23.776884,244.04,243.88,23.17129733]
[1732192612700,23.17129733,243.97,243.88,23.17129733]
[1732192613000,4.0985,243.99,243.86,10.2514]
[1732192613001,23.17129733,243.91,243.86,10.2514]
[1732192613209,23.17129733,243.89,243.8,33.42549733]
[1732192613380,23.17129733,243.87,243.8,10.2542]
[1732192613581,23.17129733,243.85,243.8,10.2542]
[1732192613896,23.17129733,243.85,243.77,23.17129733]
[1732192614076,23.17129733,243.85,243.76,4.1022]
[1732192614480,23.17129733,243.85,243.75,23.17129733]
[1732192614680,23.17129733,243.85,243.77,23.17129733]
[1732192614681,27.27229733,243.85,243.77,23.17129733]
[1732192615002,23.17129733,243.83,243.75,27.27369733]
[1732192615206,23.17129733,243.83,243.75,4.1024]
[1732192615380,23.17129733,243.83,243.74,10.2566]
[1732192615381,23.17129733,243.81,243.74,10.2566]
[1732192615583,23.17129733,243.81,243.74,14.3593]
[1732192615784,23.17129733,243.81,243.74,10.2566]
[1732192616087,23.17129733,243.81,243.73,23.17129733]
[1732192616088,23.17129733,243.82,243.73,23.17129733]
[1732192616278,23.17129733,243.82,243.73,27.27399733]
[1732192616484,23.17129733,243.79,243.73,4.1027]
[1732192617008,23.17129733,243.79,243.73,27.27399733]
[1732192617187,23.17129733,243.81,243.73,37.53119733]
[1732192617375,23.17129733,243.88,243.79,23.17129733]
[1732192617578,23.17129733,243.88,243.73,14.3599]
[1732192617579,23.17129733,243.88,243.81,23.17129733]
[1732192617778,23.17129733,243.86,243.79,23.17129733]
[1732192618004,23.17129733,243.92,243.83,23.17129733]
[1732192618499,23.17129733,243.92,243.84,4.101]
[1732192618807,23.17129733,243.94,243.85,23.17129733]
[1732192619099,23.17129733,243.92,243.84,14.3536]
[1732192620081,23.17129733,243.87,243.78,10.2549]
[1732192620284,23.17129733,243.87,243.78,33.42619733]
[1732192620494,23.17129733,243.96,243.78,10.2549]
[1732192620495,23.17129733,243.85,243.78,10.2549]
[1732192620797,23.17129733,243.79,243.74,4.1026]
[1732192621003,23.17129733,243.75,243.72,10.2573]
[1732192621604,23.17129733,243.73,243.66,41.0414]
[1732192621806,23.17129733,243.71,243.64,4.1043]
[1732192622110,0.5,243.81,243.61,23.17129733]
[1732192622111,23.17129733,243.69,243.62,4.1047]
[1732192622275,23.776884,243.78,243.62,4.1047]
[1732192622480,23.17129733,243.67,243.62,4.1047]
[1732192622795,23.17129733,243.7,243.62,14.3665]
[1732192622985,23.17129733,243.68,243.62,14.3665]
[1732192623593,23.17129733,243.78,243.67,23.17129733]
[1732192623794,23.17129733,243.84,243.77,23.17129733]
[1732192624101,23.17129733,243.86,243.78,4.102]
[1732192624781,37.74816699,243.87,243.78,41.85016699]
[1732192625783,37.74816699,243.81,243.7,20.5169]
[1732192625988,37.74816699,243.77,243.72,10.2573]
[1732192626189,37.74816699,243.75,243.72,10.2573]
[1732192626703,37.74816699,243.77,243.72,10.2573]
[1732192627498,13.4119,243.91,243.75,37.74816699]
[1732192627499,37.74816699,243.88,243.75,37.74816699]
[1732192627703,37.74816699,243.92,243.83,37.74816699]
[1732192628208,4.0993,243.95,243.81,37.74816699]
[1732192628209,37.74816699,243.9,243.81,37.74816699]
[1732192628983,37.74816699,243.9,243.82,14.3547]
[1732192629206,37.74816699,243.88,243.82,10.2534]
[1732192629407,4.1001,243.9,243.71,37.74816699]
[1732192629408,37.74816699,243.84,243.71,37.74816699]
[1732192629707,37.74816699,243.79,243.71,37.74816699]
[1732192630214,37.74816699,243.85,243.77,37.74816699]
[1732192630397,0.5,243.95,243.81,37.74816699]
[1732192630398,37.74816699,243.91,243.81,37.74816699]
[1732192630711,37.74816699,243.89,243.81,37.74816699]
[1732192630894,37.74816699,243.96,243.79,41.84986699]
[1732192630895,37.74816699,243.87,243.79,41.84986699]
[1732192631100,37.74816699,243.89,243.82,37.74816699]
[1732192631409,37.74816699,243.89,243.8,37.74816699]
[1732192631585,4.0993,243.94,243.79,14.3564]
[1732192631586,37.74816699,243.85,243.79,14.3564]
[1732192632189,37.74816699,243.89,243.8,37.74816699]
[1732192632384,37.74816699,243.89,243.82,37.74816699]
[1732192632609,37.74816699,243.91,243.84,37.74816699]
[1732192632815,37.74816699,243.89,243.8,37.74816699]
[1732192633117,37.74816699,243.91,243.82,37.74816699]
[1732192634188,37.74816699,243.87,243.81,14.3553]
[1732192634400,37.74816699,243.83,243.77,24.1021]
[1732192634891,37.74816699,243.92,243.82,37.74816699]
[1732192635115,37.74816699,243.94,243.85,37.74816699]
[1732192636093,37.74816699,243.94,243.86,4.1007]
[1732192636412,4.0991,243.96,243.86,4.1007]
[1732192636413,37.74816699,243.95,243.86,4.1007]
[1732192636592,37.74816699,243.93,243.86,4.1007]
[1732192636792,0.5,244.03,243.86,4.1007]
[1732192636793,37.74816699,243.95,243.87,37.74816699]
[1732192636988,37.74816699,244.04,243.93,37.74816699]
[1732192637191,37.74816699,244.08,243.99,37.74816699]
[1732192637714,37.74816699,244.06,243.99,37.74816699]
[1732192637922,37.74816699,244.08,243.99,37.74816699]
[1732192638212,4.0966,244.11,243.88,0.5]
[1732192638213,37.74816699,244.1,244.01,37.74816699]
[1732192638596,37.74816699,244.08,243.99,37.74816699]
[1732192638795,37.74816699,244.06,243.97,37.74816699]
[1732192639009,37.74816699,244.02,243.93,57.74816699]
[1732192639220,37.74816699,244.0,243.92,14.3489]
[1732192639389,37.74816699,243.98,243.92,14.3489]
[1732192639589,37.74816699,243.94,243.88,4.1002]
[1732192639794,37.74816699,243.94,243.88,14.3511]
[1732192639998,37.74816699,243.98,243.89,37.74816699]
[1732192640211,37.74816699,243.98,243.9,4.1]
[1732192640511,37.74816699,243.98,243.9,14.3501]
[1732192641014,37.74816699,244.04,243.95,37.74816699]
[1732192641619,37.74816699,244.08,243.99,37.74816699]
[1732192642109,37.74816699,244.06,244.0,4.0983]
[1732192642414,37.74816699,244.02,243.94,4.0992]
[1732192642620,37.74816699,243.98,243.93,10.2486]
[1732192643107,37.74816699,244.0,243.93,10.2486]
[1732192643325,37.74816699,244.0,243.93,14.3481]
[1732192643819,37.74816699,243.98,243.93,14.3481]
[1732192644120,37.74816699,243.98,243.93,10.2486]
[1732192644612,37.74816699,243.96,243.9,4.1]
[1732192645000,37.74816699,244.0,243.91,37.74816699]
[1732192645191,37.74816699,243.98,243.9,14.3501]
[1732192646110,4.0979,244.03,243.9,14.3501]
[1732192646315,37.74816699,244.0,243.91,37.74816699]
[1732192647001,4.0979,244.03,243.9,14.3501]
[1732192647002,37.74816699,244.02,243.93,37.74816699]
[1732192647407,37.74816699,244.0,243.91,37.74816699]
[1732192647809,23.776884,244.01,243.9,14.3501]
[1732192647810,37.74816699,243.98,243.9,14.3501]
[1732192648198,37.74816699,244.0,243.91,37.74816699]
[1732192648810,37.74816699,244.0,243.93,37.74816699]
[1732192649299,37.74816699,244.0,243.91,57.74816699]
[1732192649495,37.74816699,244.0,243.91,20.0]
[1732192649701,23.776884,244.01,243.82,20.5062]
[1732192649702,37.74816699,243.95,243.82,20.5062]
[1732192649903,23.776884,244.01,243.82,20.5062]
[1732192649904,37.74816699,243.99,243.89,37.74816699]
[1732192650104,61.52505099,244.01,243.91,37.74816699]
[1732192650298,61.52505099,244.01,243.93,37.74816699]
[1732192650504,23.776884,244.02,243.93,37.74816699]
[1732192650723,23.776884,244.02,243.92,14.3489]
[1732192650724,23.776884,244.0,243.92,14.3489]
[1732192650927,23.776884,244.0,243.93,37.74816699]
[1732192651099,23.776884,244.0,243.92,14.3489]
[1732192651515,37.74816699,243.99,243.92,14.3489]
[1732192652125,37.74816699,244.01,243.92,14.3489]
[1732192652426,23.776884,244.0,243.92,14.3489]
[1732192652617,23.20537816,243.99,243.9,23.20537816]
[1732192652814,23.20537816,244.03,243.94,23.20537816]
[1732192653018,23.776884,244.02,243.94,23.20537816]
[1732192653919,23.776884,244.02,243.95,14.3472]
[1732192654127,32.2174,244.15,243.99,23.20537816]
[1732192654317,23.20537816,244.1,244.01,23.20537816]
[1732192654704,23.20537816,244.12,244.03,23.20537816]
[1732192655125,23.20537816,244.14,244.05,23.20537816]
[1732192655301,23.20537816,244.1,244.01,23.20537816]
[1732192655709,23.20537816,244.12,244.03,23.20537816]
[1732192656023,56.039,244.23,244.06,14.3406]
[1732192656024,23.20537816,244.14,244.06,14.3406]
[1732192656423,45.8025,244.23,244.06,14.3406]
[1732192656424,23.20537816,244.16,244.07,23.20537816]
[1732192656807,23.20537816,244.08,244.06,10.2433]
[1732192657010,23.20537816,244.08,244.04,4.0976]
[1732192657623,23.776884,244.07,244.04,4.0976]
[1732192658013,23.776884,244.07,244.01,10.2453]
[1732192659026,23.20537816,244.02,243.96,14.3464]
[1732192659327,23.776884,244.01,243.96,14.3464]
[1732192660007,23.776884,243.99,243.96,10.2474]
[1732192660511,23.776884,244.03,243.96,10.2474]
[1732192660700,23.776884,244.03,243.97,23.20537816]
[1732192660906,23.20537816,244.06,243.97,23.20537816]
[1732192661421,23.20537816,244.04,243.96,10.2474]
[1732192661739,23.20537816,244.02,243.96,10.2474]
[1732192662213,23.776884,244.01,243.96,10.2474]
[1732192662727,23.20537816,243.98,243.94,4.0993]
[1732192662911,23.776884,243.95,243.91,14.3493]
[1732192663108,4.0981,244.02,243.91,14.3493]
[1732192663109,23.776884,243.93,243.91,10.2496]
[1732192663325,23.776884,243.93,243.91,14.3494]
[1732192663914,23.776884,243.93,243.91,10.2496]
[1732192664131,23.776884,243.93,243.86,14.3524]
[1732192664510,23.776884,243.93,243.87,23.20537816]
[1732192664713,23.776884,243.95,243.86,14.3524]
[1732192665527,23.776884,243.93,243.86,14.3524]
[1732192667027,23.776884,243.87,243.8,10.2538]
[1732192667211,23.776884,243.85,243.77,43.71597816]
[1732192667409,23.776884,243.85,243.81,10.2538]
[1732192667928,23.776884,243.87,243.81,33.45917816]
[1732192668236,23.776884,243.89,243.81,37.56067816]
[1732192668735,23.776884,243.91,243.83,23.20537816]
[1732192668943,23.776884,243.95,243.87,23.20537816]
[1732192669232,23.20537816,243.96,243.87,23.20537816]
[1732192669811,23.20537816,243.98,243.89,23.20537816]
[1732192670808,23.20537816,243.98,243.9,14.3501]
[1732192671012,4.098,244.02,243.93,23.20537816]
[1732192671013,23.20537816,244.02,243.93,23.20537816]
[1732192671209,23.20537816,244.04,243.95,23.20537816]
[1732192671411,12.6504,244.07,243.9,14.3501]
[1732192671412,23.20537816,244.02,243.93,23.20537816]
[1732192672221,23.20537816,244.02,243.9,14.3501]
[1732192672222,23.20537816,244.0,243.91,23.20537816]
[1732192672525,23.20537816,244.0,243.92,14.3489]
[1732192672729,23.776884,243.99,243.92,14.3489]
[1732192675428,23.20537816,243.98,243.92,14.3489]
[1732192675629,23.20537816,243.96,243.92,14.3489]
[1732192676016,23.776884,243.95,243.92,14.3489]
[1732192676327,23.776884,243.95,243.92,10.2492]
[1732192676534,23.776884,243.93,243.92,10.2492]
[1732192677614,23.776884,243.93,243.87,10.2511]
[1732192677827,23.776884,243.88,243.87,14.3516]
[1732192678532,23.776884,243.88,243.87,10.2511]
[1732192678709,23.776884,243.88,243.81,53.45247816]
[1732192678710,23.776884,243.88,243.82,10.2534]
[1732192679619,23.776884,243.86,243.83,4.1011]
[1732192679808,23.20537816,243.85,243.82,10.2534]
[1732192680007,23.776884,243.82,243.79,4.1017]
[1732192681039,23.776884,243.82,243.78,10.2551]
[1732192681414,23.776884,243.84,243.78,10.2551]
[1732192681732,23.776884,243.82,243.78,10.2551]
[1732192681933,23.20537816,243.79,243.73,10.2572]
[1732192682111,23.776884,243.78,243.73,10.2572]
[1732192682311,23.776884,243.78,243.73,33.46257816]
[1732192682509,23.776884,243.8,243.73,33.46257816]
[1732192682938,23.776884,243.8,243.66,33.0001]
[1732192682939,23.776884,243.8,243.75,23.20537816]
[1732192683134,23.776884,243.84,243.77,23.20537816]
[1732192683543,23.776884,243.84,243.75,23.20537816]
[1732192684119,23.776884,243.84,243.79,23.20537816]
[1732192684320,23.20537816,243.89,243.81,23.20537816]
[1732192684643,4.0993,243.95,243.81,23.20537816]
[1732192684932,4.0993,243.95,243.72,44.33592318]
[1732192684933,23.20537816,243.93,243.85,23.20537816]
[1732192685140,23.20537816,243.93,243.86,14.3524]
[1732192685441,23.20537816,243.95,243.87,23.20537816]
[1732192685636,12.8518,243.97,243.86,14.3524]
[1732192685637,23.20537816,243.97,243.89,23.20537816]
[1732192685830,23.20537816,243.99,243.91,23.20537816]
[1732192686618,27.621142,244.11,243.98,23.20537816]
[1732192686619,6.17865237,244.1,243.98,23.20537816]
[1732192686818,30.212,244.19,244.07,23.20537816]
[1732192686819,29.38403053,244.16,244.07,23.20537816]
[1732192687019,23.20537816,244.16,244.07,23.20537816]
[1732192687232,12.35730475,244.21,244.01,20.0]
[1732192687233,23.20537816,244.13,244.01,20.0]
[1732192687539,23.20537816,244.13,244.05,23.20537816]
[1732192688137,12.9098,244.22,244.09,23.20537816]
[1732192688138,23.20537816,244.19,244.09,23.20537816]
[1732192688725,23.20537816,244.17,244.09,23.20537816]
[1732192688925,23.20537816,244.21,244.13,23.20537816]
[1732192689139,23.20537816,244.23,244.15,23.20537816]
[1732192689342,23.20537816,244.23,244.16,14.3347]
[1732192689728,23.20537816,244.25,244.16,14.3347]
[1732192690027,23.20537816,244.23,244.16,14.3347]
[1732192691240,23.20537816,244.18,244.13,4.096]
[1732192691433,23.20537816,244.16,244.1,14.3379]
[1732192691747,23.20537816,244.14,244.1,14.3379]
[1732192691941,23.776884,244.11,244.08,4.0969]
[1732192692440,23.776884,244.11,244.06,4.0972]
[1732192693321,23.776884,244.11,244.05,33.44917816]
[1732192693527,23.776884,244.17,244.09,23.20537816]
[1732192694043,23.20537816,244.2,244.11,23.20537816]
[1732192694341,23.20537816,244.24,244.15,23.20537816]
[1732192695047,23.20537816,244.22,244.13,23.20537816]
[1732192695221,23.20537816,244.22,244.14,14.336]
[1732192695420,12.1844,244.29,244.14,14.336]
[1732192695421,23.20537816,244.18,244.14,10.24]
[1732192695622,23.20537816,244.16,244.08,10.2421]
[1732192695832,23.776884,244.12,244.08,10.2421]
[1732192696946,23.20537816,244.19,244.11,23.20537816]
[1732192697124,23.20537816,244.17,244.09,23.20537816]
[1732192697324,23.776884,244.16,244.1,14.3383]
[1732192697652,23.776884,244.14,244.1,14.3383]
[1732192698146,23.776884,244.14,244.1,10.2417]
[1732192698324,23.20537816,244.11,244.08,4.097]
[1732192698645,23.776884,244.1,244.08,4.097]
[1732192698846,23.776884,244.1,244.06,14.3406]
[1732192699144,23.776884,244.12,244.09,23.20537816]
[1732192699351,23.776884,244.18,244.1,14.3383]
[1732192699645,23.776884,244.16,244.1,14.3383]
[1732192700354,4.0945,244.23,244.1,14.3383]
[1732192700355,23.776884,244.14,244.1,14.3383]
[1732192700641,23.20537816,244.11,244.05,10.2437]
[1732192700847,23.776884,244.1,244.05,10.2437]
[1732192701150,23.776884,244.1,244.07,23.20537816]
[1732192701360,23.776884,244.1,244.08,14.3395]
[1732192703041,23.776884,244.12,244.08,14.3395]
[1732192703347,23.776884,244.12,244.08,10.2425]
[1732192704058,23.776884,244.14,244.08,10.2425]
[1732192704218,23.20537816,244.19,244.09,23.20537816]
[1732192704423,23.20537816,244.19,244.11,23.20537816]
[1732192704617,23.20537816,244.19,244.08,10.2425]
[1732192704618,23.20537816,244.19,244.09,23.20537816]
[1732192705242,23.20537816,244.19,244.11,23.20537816]
[1732192705447,23.20537816,244.19,244.12,14.3371]
[1732192705860,23.20537816,244.23,244.13,23.20537816]
[1732192706444,23.20537816,244.23,244.15,23.20537816]
[1732192706862,4.0937,244.28,244.12,14.3371]
[1732192706863,23.20537816,244.21,244.12,14.3371]
[1732192707351,23.776884,244.18,244.12,14.3371]
[1732192708243,23.776884,244.2,244.12,14.3371]